bitfinex/quotes_BTCUSD_20260127
["timestamp","ask_amount","ask_price","bid_price","bid_amount"]
[1769552664591,0.00030946,89161.0,89160.0,0.05607895]
[1769552664826,0.00030946,89161.0,89159.0,0.05607914]
[1769552664827,0.00014076,89161.0,89159.0,0.05607914]
[1769552665034,0.00014076,89161.0,89160.0,0.05607895]
[1769552666165,0.00014076,89161.0,89159.0,0.05607914]
[1769552667247,0.00014076,89161.0,89160.0,0.05607895]
[1769552668927,0.00014076,89161.0,89154.0,0.02399989]
[1769552669133,0.00014076,89161.0,89157.0,0.05608062]
[1769552669342,0.00014076,89161.0,89156.0,0.05608106]
[1769552670545,0.00014076,89161.0,89157.0,0.05608074]
[1769552671567,0.00014076,89161.0,89158.0,0.05607999]
[1769552671772,0.00014076,89161.0,89158.0,0.02399989]
[1769552672345,0.00014076,89161.0,89158.0,0.08007984]
[1769552672507,0.0004,89166.0,89158.0,0.02399989]
[1769552672714,0.00047364,89164.0,89163.0,0.05607707]
[1769552673177,0.00047364,89164.0,89158.0,0.11211057]
[1769552673178,0.00047364,89164.0,89162.0,0.05607717]
[1769552673598,0.00047364,89164.0,89161.0,0.0560782]
[1769552674682,0.00047364,89164.0,89160.0,0.05607792]
[1769552674906,0.000168,89172.0,89156.0,0.02399989]
[1769552674907,3.334e-05,89172.0,89156.0,0.02399989]
[1769552675109,3.334e-05,89172.0,89171.0,0.1921825]
[1769552675295,3.334e-05,89172.0,89171.0,0.19225614]
[1769552675829,0.0004,89189.0,89180.0,0.05606575]
[1769552676030,0.0004,89190.0,89186.0,0.11211057]
[1769552676258,0.0004,89190.0,89179.0,0.26474062]
[1769552676460,0.0004,89190.0,89181.0,0.02399989]
[1769552677268,0.0004,89190.0,89181.0,0.08006537]
[1769552677703,0.0004,89190.0,89182.0,0.11211057]
[1769552677912,0.0004,89190.0,89184.0,0.02399989]
[1769552680287,0.0004,89190.0,89179.0,0.34480743]
[1769552680870,0.0004,89190.0,89179.0,0.28874051]
[1769552682544,0.0004,89190.0,89182.0,0.02399989]
[1769552684362,0.0004,89190.0,89182.0,0.13611046]
[1769552685929,0.0004,89190.0,89182.0,0.19217512]
[1769552686279,0.0004,89190.0,89182.0,0.19217549]
[1769552686871,0.0004,89190.0,89182.0,0.13611046]
[1769552692086,0.0004,89190.0,89179.0,0.26474062]
[1769552692287,0.0004,89190.0,89184.0,0.05606386]
[1769552692497,0.0004,89190.0,89184.0,0.05606347]
[1769552692741,0.0004,89190.0,89189.0,0.05606072]
[1769552693810,0.0004,89190.0,89187.0,0.05606143]
[1769552694087,0.0004,89190.0,89186.0,0.05606202]
[1769552694447,0.0004,89190.0,89184.0,0.05606372]
[1769552694648,0.0004,89190.0,89185.0,0.05606319]
[1769552695380,0.0004,89190.0,89183.0,0.05606416]
[1769552695510,0.0004,89190.0,89184.0,0.05606377]
[1769552695716,0.0004,89190.0,89185.0,0.12079254]
[1769552696015,0.0004,89190.0,89186.0,0.12079254]
[1769552696213,0.0004,89190.0,89186.0,0.17685476]
[1769552696495,0.0004,89190.0,89187.0,0.0560618]
[1769552697120,0.0004,89190.0,89188.0,0.05606114]
[1769552697323,0.0004,89190.0,89189.0,0.05606072]
[1769552698359,0.0004,89190.0,89186.0,0.34504222]
[1769552698360,0.0001764,89193.0,89192.0,0.05605883]
[1769552698561,0.02497168,89204.0,89193.0,0.05605768]
[1769552699344,0.02497168,89204.0,89195.0,0.05605658]
[1769552699567,0.02497168,89204.0,89194.0,0.05605654]
[1769552699797,0.02497168,89204.0,89195.0,0.05605664]
[1769552700037,0.02497168,89204.0,89195.0,0.0560569]
[1769552700247,0.02497168,89204.0,89190.0,0.26436037]
[1769552700453,0.02497168,89204.0,89196.0,0.05605597]
[1769552700657,0.02497168,89204.0,89197.0,0.05605558]
[1769552700862,0.02497168,89204.0,89195.0,0.05605668]
[1769552701696,0.02497168,89204.0,89198.0,0.0560545]
[1769552702140,0.0001764,89204.0,89198.0,0.0560545]
[1769552702361,0.0001764,89204.0,89197.0,0.05605464]
[1769552703030,0.00031715,89204.0,89197.0,0.05605464]
[1769552703231,0.00031715,89204.0,89198.0,0.05605506]
[1769552703439,0.00031715,89204.0,89197.0,0.05605464]
[1769552703656,0.0002,89220.0,89197.0,0.05605464]
[1769552703899,0.10922933,89216.0,89197.0,0.02405819]
[1769552704084,0.10922933,89216.0,89200.0,0.26436037]
[1769552704761,0.0001899,89217.0,89206.0,0.26436037]
[1769552704971,0.0001899,89217.0,89206.0,0.00014075]
[1769552707443,0.08986085,89229.0,89206.0,0.00014075]
[1769552707444,0.0002,89236.0,89220.0,0.0002]
[1769552707658,0.10922933,89230.0,89220.0,0.0002]
[1769552707854,0.10922933,89230.0,89212.0,0.02499999]
[1769552708261,0.10922933,89230.0,89220.0,0.26436037]
[1769552708866,0.10922933,89230.0,89212.0,0.02499999]
[1769552709120,0.10922933,89230.0,89206.0,0.00014075]
[1769552709121,0.26436037,89230.0,89206.0,0.00014075]
[1769552709353,0.10922933,89229.0,89206.0,7.038e-05]
[1769552709552,0.10922933,89228.0,89206.0,7.038e-05]
[1769552709893,0.00449787,89225.0,89206.0,7.038e-05]
[1769552710091,0.00449787,89223.0,89206.0,7.038e-05]
[1769552710300,0.00449787,89221.0,89206.0,7.038e-05]
[1769552710521,0.1137272,89220.0,89206.0,7.038e-05]
[1769552714302,0.1137272,89220.0,89210.0,0.26436037]
[1769552714628,0.10916933,89220.0,89210.0,0.26436037]
[1769552716875,0.10916933,89220.0,89206.0,7.038e-05]
[1769552717641,0.10916933,89220.0,89210.0,0.26436037]
[1769552718046,0.10922933,89230.0,89210.0,0.26436037]
[1769552719647,0.10922933,89230.0,89220.0,0.26436037]
[1769552719801,0.0004,89231.0,89220.0,0.26436037]
[1769552724849,0.0004,89231.0,89223.0,0.1160376]
[1769552725051,0.0004,89231.0,89226.0,0.02949807]
[1769552725402,0.0004,89231.0,89228.0,0.02949807]
[1769552725759,0.0002,89236.0,89223.0,0.22415687]
[1769552725960,0.0002,89240.0,89233.0,0.02500048]
[1769552727028,0.0002,89240.0,89234.0,0.02500048]
[1769552727227,0.00066932,89240.0,89234.0,0.02500048]
[1769552728363,0.0002029,89241.0,89234.0,0.02500048]
[1769552728564,0.00034355,89241.0,89237.0,0.1160376]
[1769552728764,0.00034355,89241.0,89238.0,0.1160376]
[1769552729144,0.00034355,89241.0,89239.0,0.02418153]
[1769552731948,0.00034355,89241.0,89235.0,0.1160376]
[1769552731949,0.0004,89246.0,89235.0,0.1160376]
[1769552732170,0.0004,89246.0,89235.0,0.14021913]
[1769552734583,0.0004,89246.0,89235.0,0.02418153]
[1769552734926,0.0004,89246.0,89235.0,0.14021913]
[1769552737469,0.0004,89251.0,89232.0,0.02418153]
[1769552737679,0.0004,89251.0,89245.0,0.1160376]
[1769552737891,0.0004,89251.0,89245.0,0.14021913]
[1769552739101,0.02285466,89264.0,89245.0,0.14021913]
[1769552739328,0.02285466,89264.0,89250.0,0.26436037]
[1769552739661,0.11629953,89263.0,89250.0,0.26436037]
[1769552740050,0.13915419,89263.0,89250.0,0.26436037]
[1769552740489,0.13915419,89263.0,89250.0,0.24436037]
[1769552740907,0.02285466,89263.0,89250.0,0.24306077]
[1769552743381,0.02285466,89271.0,89251.0,0.1160376]
[1769552743606,0.11629953,89270.0,89256.0,0.26436037]
[1769552744028,0.02315796,89266.0,89251.0,0.1160376]
[1769552744729,0.02206102,89281.0,89258.0,0.02418153]
[1769552744921,0.0002575,89282.0,89250.0,0.26436037]
[1769552744922,0.02259269,89300.0,89273.0,0.1160376]
[1769552745129,0.26436037,89310.0,89261.0,0.1160376]
[1769552745130,0.26436037,89290.0,89261.0,0.1160376]
[1769552745344,0.11512,89307.0,89270.0,0.26436037]
[1769552745345,0.02285466,89285.0,89270.0,0.26436037]
[1769552745568,0.02285466,89294.0,89272.0,0.02418153]
[1769552745790,0.08965795,89296.0,89258.0,0.0002575]
[1769552745791,0.00034355,89272.0,89260.0,0.26436037]
[1769552745995,0.02285466,89270.0,89258.0,0.0002575]
[1769552746424,0.0001406,89272.0,89260.0,0.26436037]
[1769552746844,0.0001406,89272.0,89261.0,0.1160376]
[1769552749212,0.0001406,89272.0,89251.0,0.0002448]
[1769552749213,0.02285466,89259.0,89251.0,0.0002448]
[1769552749378,0.02285466,89259.0,89252.0,0.11174013]
[1769552749573,0.02285466,89259.0,89251.0,0.0002448]
[1769552750211,0.02285466,89257.0,89240.0,0.26436037]
[1769552750411,0.02285466,89255.0,89241.0,0.1118292]
[1769552750629,0.02285466,89255.0,89236.0,0.1160376]
[1769552750630,0.02285466,89253.0,89242.0,0.1118292]
[1769552750843,0.02285466,89251.0,89243.0,0.11183121]
[1769552751052,0.0001406,89272.0,89229.0,0.17699858]
[1769552751053,0.11629953,89249.0,89229.0,0.17699858]
[1769552751267,0.02285466,89248.0,89230.0,0.38039797]
[1769552751480,0.02285466,89248.0,89230.0,0.26436037]
[1769552751685,0.02285466,89248.0,89231.0,0.1160376]
[1769552755992,0.02285466,89248.0,89238.0,0.26436037]
[1769552757670,0.02285466,89248.0,89238.0,0.2640907]
[1769552760552,0.02285466,89248.0,89231.0,0.13974684]
[1769552760836,0.02498292,89246.0,89226.0,0.08994079]
[1769552761066,0.05602611,89245.0,89226.0,0.0004117]
[1769552761304,0.2640907,89250.0,89226.0,0.0004117]
[1769552761305,0.11325462,89237.0,89226.0,0.0004117]
[1769552761504,0.02498292,89223.0,89212.0,0.08955026]
[1769552761731,0.11325462,89220.0,89202.0,0.0004117]
[1769552761988,0.08965795,89243.0,89202.0,0.0004117]
[1769552761989,0.11325462,89216.0,89202.0,0.0004117]
[1769552762183,0.11508,89227.0,89202.0,0.0004117]
[1769552762184,0.02498292,89213.0,89202.0,0.0004117]
[1769552762388,0.02498292,89213.0,89202.0,0.00088102]
[1769552764900,0.11325462,89246.0,89214.0,0.12093477]
[1769552765107,0.11325462,89246.0,89220.0,0.2640907]
[1769552765108,0.11325462,89241.0,89220.0,0.2640907]
[1769552765321,0.08965795,89244.0,89220.0,0.2640907]
[1769552765322,0.02498292,89238.0,89220.0,0.2640907]
[1769552765528,0.02498292,89234.0,89220.0,0.2640907]
[1769552765747,0.11325462,89232.0,89210.0,0.2640907]
[1769552765957,0.11325462,89228.0,89201.0,0.12093477]
[1769552766164,0.02498292,89225.0,89201.0,0.12093477]
[1769552766368,0.2640907,89230.0,89202.0,0.12181579]
[1769552766369,0.02498292,89221.0,89202.0,0.12181579]
[1769552767022,0.11325462,89221.0,89202.0,0.12181579]
[1769552767228,0.02498292,89220.0,89202.0,0.12181579]
[1769552768066,0.02498292,89220.0,89202.0,0.00088102]
[1769552768270,0.02498292,89216.0,89202.0,0.00088102]
[1769552768453,0.02498292,89214.0,89202.0,0.00088102]
[1769552769236,0.08965795,89229.0,89195.0,0.12093477]
[1769552769237,0.11325462,89213.0,89195.0,0.12093477]
[1769552769451,0.02498292,89210.0,89195.0,0.12107542]
[1769552770016,0.02498292,89210.0,89200.0,0.2640907]
[1769552771941,0.02498292,89218.0,89200.0,0.2640907]
[1769552772152,0.02498292,89218.0,89195.0,0.00014065]
[1769552772153,0.02498292,89235.0,89212.0,0.02370924]
[1769552772407,0.02498292,89235.0,89213.0,0.12093477]
[1769552772408,0.02498292,89234.0,89213.0,0.12093477]
[1769552772588,0.02498292,89233.0,89213.0,0.12093477]
[1769552772794,0.02498292,89232.0,89213.0,0.12093477]
[1769552773819,0.11512,89235.0,89216.0,0.02370924]
[1769552774021,0.11512,89235.0,89217.0,0.12093477]
[1769552774435,0.14010292,89235.0,89217.0,0.12093477]
[1769552775186,0.02492292,89235.0,89217.0,0.12093477]
[1769552779395,0.11185026,89234.0,89217.0,0.12093477]
[1769552779604,0.11185026,89233.0,89217.0,0.12093477]
[1769552779813,0.11185026,89232.0,89217.0,0.12093477]
[1769552780027,0.11185026,89231.0,89217.0,0.12093477]
[1769552780230,0.11185026,89230.0,89217.0,0.12093477]
[1769552780434,0.11185026,89229.0,89217.0,0.12093477]
[1769552780639,0.11187968,89228.0,89217.0,0.12093477]
[1769552780849,0.14010292,89233.0,89217.0,0.12093477]
[1769552781052,0.11187969,89232.0,89217.0,0.12093477]
[1769552781254,0.14010292,89233.0,89217.0,0.12093477]
[1769552781255,0.11187969,89231.0,89217.0,0.12093477]
[1769552781465,0.14010292,89233.0,89217.0,0.12093477]
[1769552781665,0.02498292,89227.0,89206.0,0.12093477]
[1769552781877,0.02498292,89225.0,89206.0,0.12093477]
[1769552783129,0.11325462,89224.0,89206.0,0.12093477]
[1769552783357,0.02498292,89221.0,89206.0,0.12093477]
[1769552783584,0.1094247,89220.0,89199.0,0.10662549]
[1769552783798,0.02309621,89219.0,89201.0,0.10662549]
[1769552787037,0.0233898,89217.0,89196.0,0.10498535]
[1769552787252,0.0233898,89217.0,89200.0,0.2640907]
[1769552787482,0.0233898,89217.0,89200.0,0.36907605]
[1769552788345,0.11206002,89216.0,89200.0,0.36907605]
[1769552788551,0.0233898,89217.0,89200.0,0.36907605]
[1769552788753,0.11206005,89216.0,89200.0,0.36907605]
[1769552789023,0.0233898,89217.0,89200.0,0.36907605]
[1769552789173,0.11466442,89218.0,89200.0,0.36907605]
[1769552789174,0.1354507,89216.0,89200.0,0.36907605]
[1769552789379,0.1120609,89215.0,89200.0,0.36907605]
[1769552789575,0.1120609,89214.0,89200.0,0.36907605]
[1769552789780,0.0233898,89212.0,89195.0,0.00014065]
[1769552789991,0.0233898,89211.0,89195.0,0.00014065]
[1769552790567,0.0233898,89211.0,89195.0,0.105126]
[1769552792221,0.0233898,89211.0,89200.0,0.2640907]
[1769552793022,0.0233898,89211.0,89195.0,0.105126]
[1769552794609,0.0233898,89211.0,89195.0,0.12830162]
[1769552795848,0.11466442,89212.0,89195.0,0.12830162]
[1769552796066,0.11210779,89211.0,89195.0,0.12830162]
[1769552796261,0.11466442,89212.0,89195.0,0.12830162]
[1769552796457,0.11210343,89211.0,89195.0,0.12830162]
[1769552796711,0.11466442,89212.0,89195.0,0.12830162]
[1769552796939,0.11210824,89211.0,89195.0,0.12830162]
[1769552797145,0.11466442,89212.0,89195.0,0.12830162]
[1769552797387,0.11210388,89211.0,89195.0,0.12830162]
[1769552797569,0.11466442,89212.0,89195.0,0.12830162]
[1769552797797,0.11210388,89211.0,89195.0,0.12830162]
[1769552797999,0.11466442,89212.0,89196.0,0.12816097]
[1769552798272,0.11210388,89211.0,89196.0,0.12816097]
[1769552798450,0.11466442,89212.0,89196.0,0.12816097]
[1769552798622,0.11209955,89211.0,89196.0,0.12816097]
[1769552798821,0.11466442,89212.0,89196.0,0.12816097]
[1769552799027,0.11209955,89211.0,89196.0,0.12816097]
[1769552799231,0.11466442,89212.0,89196.0,0.12816097]
[1769552799434,0.11209559,89211.0,89196.0,0.12816097]
[1769552799715,0.11466442,89212.0,89196.0,0.12816097]
[1769552799918,0.11209559,89211.0,89196.0,0.12816097]
[1769552800121,0.11466442,89212.0,89196.0,0.12816097]
[1769552800395,0.11209345,89211.0,89197.0,0.02317562]
[1769552800561,0.0233898,89215.0,89197.0,0.02317562]
[1769552800761,0.11209345,89214.0,89197.0,0.02317562]
[1769552800968,0.11209345,89213.0,89197.0,0.02317562]
[1769552801172,0.0233898,89215.0,89197.0,0.02317562]
[1769552801173,0.11209345,89212.0,89197.0,0.02317562]
[1769552801428,0.11209345,89211.0,89197.0,0.02317562]
[1769552801540,0.0233898,89215.0,89197.0,0.02301633]
[1769552801743,0.11209131,89214.0,89197.0,0.02301633]
[1769552801947,0.11209131,89213.0,89197.0,0.02301633]
[1769552802146,0.11209131,89212.0,89197.0,0.02301633]
[1769552802389,0.11209131,89211.0,89197.0,0.02301633]
[1769552802616,0.0233898,89215.0,89197.0,0.02301633]
[1769552802819,0.11209101,89214.0,89197.0,0.02301633]
[1769552803025,0.11209101,89213.0,89197.0,0.02301633]
[1769552803242,0.13805422,89215.0,89197.0,0.02301633]
[1769552803243,0.11209101,89212.0,89197.0,0.02301633]
[1769552803476,0.13805422,89215.0,89197.0,0.02301633]
[1769552803682,0.11208898,89214.0,89197.0,0.02301633]
[1769552803888,0.11208898,89213.0,89197.0,0.02301633]
[1769552804083,0.11208898,89212.0,89197.0,0.02301633]
[1769552804306,0.11208898,89211.0,89197.0,0.02301633]
[1769552804441,0.13805422,89215.0,89197.0,0.02301633]
[1769552804644,0.22675349,89214.0,89197.0,0.02301633]
[1769552804850,0.22675349,89213.0,89197.0,0.02301633]
[1769552805081,0.11208907,89212.0,89197.0,0.02301633]
[1769552805279,0.11466442,89213.0,89197.0,0.02301633]
[1769552805485,0.11208918,89212.0,89197.0,0.02301633]
[1769552805683,0.11466442,89213.0,89197.0,0.02301633]
[1769552805911,0.0233898,89215.0,89195.0,0.00014065]
[1769552805912,0.11466442,89211.0,89195.0,0.00014065]
[1769552806271,0.0233898,89215.0,89195.0,0.00014065]
[1769552806272,0.2267536,89210.0,89195.0,0.00014065]
[1769552806475,0.11208918,89209.0,89195.0,0.00014065]
[1769552807044,0.11466442,89208.0,89195.0,0.00014065]
[1769552807242,0.11466442,89208.0,89180.0,0.05606577]
[1769552807243,0.00014065,89195.0,89185.0,0.02733551]
[1769552807442,0.11466442,89199.0,89185.0,7.038e-05]
[1769552813265,0.11211544,89198.0,89185.0,7.038e-05]
[1769552813458,0.11211544,89197.0,89185.0,7.038e-05]
[1769552813665,0.11211544,89196.0,89185.0,7.038e-05]
[1769552813889,0.11466442,89199.0,89185.0,7.038e-05]
[1769552814103,0.11209677,89198.0,89185.0,7.038e-05]
[1769552814300,0.11209677,89197.0,89185.0,7.038e-05]
[1769552814519,0.11466442,89199.0,89185.0,7.038e-05]
[1769552814724,0.11208109,89198.0,89185.0,7.038e-05]
[1769552814900,0.11208109,89197.0,89185.0,7.038e-05]
[1769552815101,0.10359994,89203.0,89185.0,7.038e-05]
[1769552815302,0.11208109,89202.0,89185.0,7.038e-05]
[1769552815505,0.11208109,89201.0,89185.0,7.038e-05]
[1769552815705,0.11208109,89200.0,89185.0,7.038e-05]
[1769552815913,0.11208109,89199.0,89185.0,7.038e-05]
[1769552816139,0.11208109,89198.0,89185.0,7.038e-05]
[1769552816284,0.11208109,89197.0,89185.0,7.038e-05]
[1769552816486,0.11208109,89196.0,89185.0,7.038e-05]
[1769552816683,0.10359994,89203.0,89185.0,7.038e-05]
[1769552816894,0.11206002,89202.0,89185.0,7.038e-05]
[1769552817183,0.11206002,89201.0,89185.0,7.038e-05]
[1769552817398,0.11206002,89200.0,89185.0,7.038e-05]
[1769552817630,0.11206002,89199.0,89185.0,7.038e-05]
[1769552817806,0.11206002,89198.0,89185.0,7.038e-05]
[1769552818019,0.11206002,89197.0,89185.0,7.038e-05]
[1769552818219,0.11206002,89196.0,89185.0,7.038e-05]
[1769552818423,0.10359994,89203.0,89185.0,7.038e-05]
[1769552818641,0.11516,89204.0,89159.0,0.00032987]
[1769552818642,0.00034355,89183.0,89159.0,0.00032987]
[1769552818849,0.00034355,89183.0,89173.0,0.11143104]
[1769552819065,0.10359994,89196.0,89174.0,0.04982719]
[1769552819261,0.10359994,89196.0,89175.0,0.04982719]
[1769552819262,0.21563854,89195.0,89175.0,0.04982719]
[1769552819470,0.10359994,89193.0,89175.0,0.04982719]
[1769552819681,0.10359994,89191.0,89175.0,0.04982719]
[1769552819836,0.1120386,89190.0,89175.0,0.04982719]
[1769552820037,0.1120386,89189.0,89175.0,0.04982719]
[1769552820269,0.10359994,89191.0,89175.0,0.04982719]
[1769552820467,0.11200665,89190.0,89175.0,0.04982719]
[1769552820783,0.21560659,89189.0,89175.0,0.04982719]
[1769552820986,0.11200665,89188.0,89175.0,0.04982719]
[1769552821189,0.10359994,89189.0,89175.0,0.04982719]
[1769552821772,0.10359994,89189.0,89168.0,0.04982764]
[1769552822400,0.00014054,89196.0,89160.0,0.04982764]
[1769552822401,0.10359994,89179.0,89160.0,0.04982764]
[1769552822600,0.10359994,89179.0,89160.0,0.314236]
[1769552823972,0.10359994,89179.0,89161.0,0.11143104]
[1769552824178,0.10359994,89179.0,89161.0,0.15676099]
[1769552824386,0.10359994,89179.0,89162.0,0.04532995]
[1769552826967,0.10359994,89179.0,89160.0,0.26440836]
[1769552826968,0.10359994,89186.0,89163.0,0.11143104]
[1769552827141,0.11182947,89185.0,89163.0,0.152263]
[1769552827323,0.10359994,89183.0,89163.0,0.152263]
[1769552830171,0.10359994,89183.0,89155.0,0.05608154]
[1769552830172,0.00034355,89163.0,89130.0,0.0002]
[1769552830349,0.00034355,89163.0,89150.0,0.26440836]
[1769552830562,0.00034355,89163.0,89151.0,0.0250897]
[1769552831362,0.00034355,89163.0,89151.0,0.02516334]
[1769552835563,0.00028355,89163.0,89151.0,0.02516334]
[1769552837860,0.00028355,89163.0,89151.0,7.364e-05]
[1769552839046,0.02250056,89166.0,89151.0,7.364e-05]
[1769552847014,0.11182854,89165.0,89151.0,7.364e-05]
[1769552847223,0.02357816,89163.0,89151.0,7.364e-05]
[1769552847429,0.02357816,89161.0,89151.0,7.364e-05]
[1769552848255,0.02357816,89159.0,89151.0,7.364e-05]
[1769552851390,0.02357816,89159.0,89140.0,0.26440836]
[1769552851514,0.10326534,89156.0,89140.0,0.26487785]
[1769552851708,0.05607555,89166.0,89140.0,0.26487785]
[1769552851709,0.02357816,89155.0,89140.0,0.26487785]
[1769552851968,0.02357816,89155.0,89140.0,0.37542679]
[1769552854862,0.02357816,89155.0,89140.0,0.00046949]
[1769552855088,0.10326534,89153.0,89131.0,0.11054894]
[1769552855289,0.02357816,89151.0,89131.0,0.11054894]
[1769552855939,0.1119398,89150.0,89131.0,0.11054894]
[1769552856087,0.02357816,89149.0,89131.0,0.11054894]
[1769552857902,0.02357816,89149.0,89139.0,0.26440836]
[1769552858722,0.02357816,89149.0,89137.0,0.11054894]
[1769552861839,0.02357816,89149.0,89139.0,0.26440836]
[1769552862991,0.02357816,89149.0,89137.0,0.11054894]
[1769552867066,0.02357816,89149.0,89137.0,0.09376494]
[1769552867291,0.02357816,89149.0,89137.0,0.08258095]
[1769552875259,0.1120627,89148.0,89137.0,0.08258095]
[1769552875483,0.02357816,89149.0,89137.0,0.08258095]
[1769552875685,0.11206256,89148.0,89137.0,0.08258095]
[1769552875919,0.02357816,89149.0,89137.0,0.08258095]
[1769552876110,0.1120627,89148.0,89137.0,0.08258095]
[1769552876289,0.02357816,89149.0,89137.0,0.08258095]
[1769552876463,0.11208783,89148.0,89137.0,0.08258095]
[1769552876652,0.02357816,89149.0,89137.0,0.08258095]
[1769552876854,0.11208796,89148.0,89137.0,0.08258095]
[1769552877056,0.11208792,89147.0,89137.0,0.08258095]
[1769552877273,0.02357816,89149.0,89137.0,0.08258095]
[1769552877475,0.11209502,89148.0,89137.0,0.08258095]
[1769552877677,0.11209502,89147.0,89137.0,0.08258095]
[1769552877931,0.02357816,89149.0,89137.0,0.08258095]
[1769552878069,0.11208939,89148.0,89137.0,0.08258095]
[1769552878266,0.11208939,89147.0,89137.0,0.08258095]
[1769552878452,0.02357816,89149.0,89137.0,0.08258095]
[1769552878656,0.11209692,89148.0,89137.0,0.08258095]
[1769552878860,0.11209692,89147.0,89137.0,0.08258095]
[1769552879109,0.02357816,89149.0,89137.0,0.08258095]
[1769552879425,0.11209673,89148.0,89137.0,0.08258095]
[1769552879635,0.11209673,89147.0,89137.0,0.08258095]
[1769552879808,0.02357816,89149.0,89137.0,0.08258095]
[1769552880160,0.11210488,89148.0,89137.0,0.08258095]
[1769552880295,0.11210488,89147.0,89137.0,0.08258095]
[1769552880498,0.11210488,89146.0,89137.0,0.08258095]
[1769552880751,0.11210488,89145.0,89137.0,0.08258095]
[1769552880932,0.02357816,89149.0,89137.0,0.08258095]
[1769552881132,0.1121089,89148.0,89137.0,0.08258095]
[1769552881353,0.1121089,89147.0,89137.0,0.08258095]
[1769552881648,0.1121089,89146.0,89137.0,0.08258095]
[1769552881859,0.1121089,89145.0,89137.0,0.08258095]
[1769552882246,0.02357816,89149.0,89137.0,0.08258095]
[1769552882418,0.11207191,89148.0,89137.0,0.08258095]
[1769552882620,0.11207191,89147.0,89137.0,0.08258095]
[1769552882921,0.11207191,89146.0,89137.0,0.08258095]
[1769552883119,0.11207191,89145.0,89137.0,0.08258095]
[1769552883266,0.11208895,89144.0,89137.0,0.08258095]
[1769552883469,0.02357816,89149.0,89137.0,0.02769095]
[1769552883673,0.1120889,89148.0,89137.0,0.02769095]
[1769552883874,0.1120889,89147.0,89137.0,0.02769095]
[1769552884179,0.1120889,89146.0,89137.0,0.02769095]
[1769552884404,0.02357816,89149.0,89137.0,0.02769095]
[1769552884405,0.1120889,89145.0,89137.0,0.02769095]
[1769552884770,0.02357816,89149.0,89137.0,0.02769095]
[1769552884953,0.11211853,89148.0,89137.0,0.02769095]
[1769552885127,0.11211853,89147.0,89137.0,0.02769095]
[1769552885302,0.11211853,89146.0,89137.0,0.02769095]
[1769552885508,0.11212041,89145.0,89137.0,0.02769095]
[1769552885687,0.00046854,89153.0,89137.0,0.02769095]
[1769552885896,0.11212069,89152.0,89137.0,0.02769095]
[1769552886099,0.11212069,89151.0,89137.0,0.02769095]
[1769552886327,0.11212069,89150.0,89137.0,0.02769095]
[1769552886537,0.11212069,89149.0,89137.0,0.02769095]
[1769552886740,0.00046854,89153.0,89137.0,0.02769095]
[1769552886741,0.11212069,89148.0,89137.0,0.02769095]
[1769552887032,0.11212069,89147.0,89137.0,0.02769095]
[1769552887200,0.11212069,89146.0,89137.0,0.02769095]
[1769552887404,0.11212069,89145.0,89137.0,0.02769095]
[1769552887605,0.00046854,89153.0,89137.0,0.02769095]
[1769552887803,0.11211957,89152.0,89137.0,0.02769095]
[1769552888007,0.11211957,89151.0,89137.0,0.02769095]
[1769552888244,0.11211957,89150.0,89137.0,0.02769095]
[1769552888459,0.11211957,89149.0,89137.0,0.02769095]
[1769552888666,0.11211957,89148.0,89137.0,0.02769095]
[1769552888859,0.11211957,89147.0,89137.0,0.02769095]
[1769552889184,0.11211957,89146.0,89130.0,0.36703767]
[1769552889391,0.11211957,89145.0,89130.0,0.36703767]
[1769552889528,0.11211957,89144.0,89130.0,0.39195204]
[1769552889730,0.11211957,89143.0,89131.0,0.10232959]
[1769552889944,0.02492968,89149.0,89131.0,0.10232959]
[1769552890189,0.11210643,89148.0,89131.0,0.10232959]
[1769552890510,0.00046854,89153.0,89135.0,0.10232959]
[1769552890511,0.11210643,89147.0,89135.0,0.10232959]
[1769552890698,0.11210643,89146.0,89137.0,0.10232959]
[1769552890900,0.11210643,89145.0,89137.0,0.12724396]
[1769552891138,0.00046854,89153.0,89137.0,0.12724396]
[1769552891303,0.11209267,89152.0,89137.0,0.12724396]
[1769552891511,0.11209267,89151.0,89137.0,0.12724396]
[1769552891726,0.11209267,89150.0,89137.0,0.12724396]
[1769552892068,0.11209267,89149.0,89137.0,0.12724396]
[1769552892218,0.11209267,89148.0,89137.0,0.12724396]
[1769552892423,0.11209267,89147.0,89137.0,0.12724396]
[1769552892603,0.11209267,89146.0,89137.0,0.12724396]
[1769552892802,0.11209267,89145.0,89137.0,0.12724396]
[1769552892988,0.00046854,89153.0,89137.0,0.12724396]
[1769552893190,0.11208945,89152.0,89137.0,0.12724396]
[1769552893425,0.11208945,89151.0,89137.0,0.12724396]
[1769552893606,0.11208945,89150.0,89137.0,0.12724396]
[1769552893822,0.11208945,89149.0,89130.0,0.26470808]
[1769552894003,0.11208611,89148.0,89130.0,0.26470808]
[1769552894208,0.11208611,89147.0,89130.0,0.26470808]
[1769552894414,0.11208611,89146.0,89130.0,0.39195204]
[1769552894632,0.12669436,89150.0,89130.0,0.39195204]
[1769552894633,0.11208611,89145.0,89131.0,0.10232959]
[1769552894829,0.11208611,89144.0,89131.0,0.12724396]
[1769552895007,0.11208611,89143.0,89131.0,0.12724396]
[1769552895212,0.12669436,89150.0,89131.0,0.12724396]
[1769552895437,0.1120791,89149.0,89131.0,0.12724396]
[1769552895635,0.1120791,89148.0,89131.0,0.12724396]
[1769552895972,0.12669436,89150.0,89131.0,0.12724396]
[1769552895973,0.1120791,89147.0,89131.0,0.12724396]
[1769552896115,0.1120191,89146.0,89131.0,0.12724396]
[1769552896317,0.12669436,89150.0,89131.0,0.12724396]
[1769552899252,0.12669436,89150.0,89132.0,0.02491437]
[1769552900863,0.12669436,89150.0,89132.0,0.12724396]
[1769552902571,0.12669436,89150.0,89133.0,0.02491437]
[1769552905569,0.12669436,89150.0,89133.0,0.12718987]
[1769552905938,0.12669436,89150.0,89130.0,0.26470808]
[1769552905939,0.10176468,89150.0,89134.0,0.02279698]
[1769552906158,0.10176468,89150.0,89135.0,0.02279698]
[1769552908146,0.11208956,89149.0,89135.0,0.02279698]
[1769552908381,0.11208956,89148.0,89136.0,0.1022755]
[1769552908551,0.11208956,89147.0,89138.0,0.1022755]
[1769552908753,0.11208956,89146.0,89139.0,0.02279698]
[1769552908929,0.11208956,89145.0,89139.0,0.02279698]
[1769552909133,0.11208956,89144.0,89139.0,0.02279698]
[1769552909357,0.08966889,89152.0,89139.0,0.02279698]
[1769552909565,0.11210135,89151.0,89139.0,0.02279698]
[1769552909766,0.09013743,89153.0,89142.0,0.02279698]
[1769552909971,0.09013743,89153.0,89151.0,0.03251343]
[1769552909972,0.00046854,89153.0,89151.0,0.03251343]
[1769552910192,0.00046854,89153.0,89151.0,0.02189867]
[1769552915294,0.08966889,89165.0,89153.0,0.00046854]
[1769552915491,0.00011557,89165.0,89154.0,0.02279698]
[1769552915714,0.00011557,89165.0,89155.0,0.02279698]
[1769552918646,0.00011557,89165.0,89140.0,0.26470808]
[1769552918851,0.00011557,89165.0,89143.0,0.1022755]
[1769552919090,0.00011557,89165.0,89145.0,0.1022755]
[1769552919294,0.00011557,89165.0,89147.0,0.1022755]